[Event "FRA-ch Teams Top 16-A 2022"]
[Site "Chartres"]
[Date "2022.06.13"]
[Round "5.4"]
[White "Wirig, Anthony"]
[Black "Eden, James"]
[Result "1-0"]
[ECO "D15"]
[WhiteElo "2520"]
[BlackElo "2273"]
[Annotator "TA"]
[PlyCount "125"]
[EventDate "2022.06.09"]
[EventType "team-tourn"]
[EventCountry "FRA"]
[SourceTitle "playchess.com"]
[Source "ChessBase"]
[SourceQuality "1"]
[TimeControl "40/5400+30:1800+30"]

{[%evp 10,125,28,18,20,18,30,31,32,32,28,31,52,24,25,27,18,19,63,60,46,53,22,0,54,47,46,41,51,28,14,19,25,0,64,65,61,31,19,23,34,5,5,5,60,57,75,64,53,61,47,20,20,28,21,11,14,12,61,35,35,35,35,35,35,35,69,70,72,72,1061,1111,1111,1111,1111,1111,1111,1111,1111,1111,1111,1111,1104,1104,928,1022,804,758,833,802,1994,1734,1987,624,29961,29962,29959,29953,12829,12802,12789,12789,7140,6183,5097,4685,2729,1906,29983,29984,29985,29984,29984,29985,29985,29986,29987,29984]} 1. c4 {[%emt 0:00:33]} Nf6 {[%emt 0:01:02]} 2. Nf3 {[%emt 0:02:26]} c6 {[%emt 0:01:25]} 3. d4 {[%emt 0:01:11]} d5 {[%emt 0:00:10]} 4. e3 {[%emt 0:00:11]} Bf5 {[%emt 0:00:46]} 5. Nc3 {[%emt 0:00:11]} a6 {[%emt 0:00:36]} 6. Qb3 {[%emt 0:00:49]} Ra7 {[%emt 0:00:09] D15: Slav Defence: 4 Nc3 a6 and gambit lines after 4 Nc3 dxc4.} 7. a4 {[%emt 0:00:16]} e6 {[%emt 0:00:52]} 8. a5 {[%emt 0:01:05]} Nbd7 {[%emt 0:03:32] White is slightly better.} 9. Nh4 {[%emt 0:00:45]} Be4 {[%emt 0:01:06]} 10. c5 {[%emt 0:08:04] [#]} Qc7 $146 {[%emt 0:07:30]} ({Predecessor:} 10... h6 11. Nxe4 dxe4 12. g3 g5 13. Ng2 Nd5 14. Be2 f5 15. f3 N7f6 16. fxe4 fxe4 {½-½ (59) Kozul,Z (2619)-Zarubitski,V (2404) Skopje 2019}) 11. Nxe4 {[%emt 0:06:57]} dxe4 {[%emt 0:02:07]} 12. g3 {[%emt 0:01:32]} g5 {[%emt 0:05:46]} 13. Ng2 {[%emt 0:00:25]} Bg7 {[%emt 0:00:11]} 14. Be2 {[%emt 0:06:40]} Ra8 {[%emt 0:09:31]} 15. Bd2 {[%emt 0:03:52]} Nd5 {[%emt 0:05:59]} 16. f3 {[%emt 0:05:32]} f5 {[%emt 0:04:08]} (16... exf3 $1 $11 17. Bxf3 O-O) 17. fxe4 $14 {[%emt 0:02:41]} fxe4 {[%emt 0:00:08]} 18. O-O-O {[%emt 0:11:15]} O-O {[%emt 0:05:09]} 19. Rdf1 {[%emt 0:02:01] Prevents Rf2.} (19. Be1 $5 {[%cal Rh2h4]}) 19... Rxf1+ {[%emt 0:02:38]} 20. Rxf1 {[%emt 0:00:16]} Rf8 {[%emt 0:00:23]} 21. Ne1 {[%emt 0:09:17][%cal Bg2e1,Be1c2,Bc2a3][%mdl 32]} Rf5 {[%emt 0:16:26]} ({Black should try} 21... Rxf1 $11 22. Bxf1 N7f6) 22. Nc2 $1 {[%emt 0:06:14]} Kf8 {[%emt 0:02:27]} 23. Na3 {[%emt 0:00:50]} (23. Rh1 {feels hotter.} Rf2 24. Bg4 N7f6 25. Bxe6 g4 26. h3) 23... Rxf1+ {[%emt 0:05:30]} 24. Bxf1 {[%emt 0:00:35][%cal Be2f1,Bf1h3,Bh3f5][%mdl 32]} e5 {[%emt 0:00:18]} 25. Nc2 {[%emt 0:05:43] Black should prevent Bc4.} exd4 {[%emt 0:01:30]} 26. exd4 {[%emt 0:00:54]} h6 {[%emt 0:01:06]} (26... g4 $11) 27. Bh3 {[%emt 0:01:46]} N7f6 {[%emt 0:01:04]} 28. Bf5 {[%emt 0:03:51]} Ne7 {[%emt 0:10:20]} 29. Be6 {[%emt 0:00:54] This bishop pair is nice.} Ned5 {[%emt 0:02:46]} 30. Kd1 {[%emt 0:12:23]} Ke7 {[%emt 0:02:36]} 31. Bf5 {[%emt 0:00:55]} Kd8 {[%emt 0:00:52]} 32. Ne3 {[%emt 0:01:48]} Nxe3+ {[%emt 0:05:02]} 33. Qxe3 {[%emt 0:00:59]} Qe7 {[%emt 0:01:15]} (33... Qf7 $11) 34. Kc2 {[%emt 0:00:58] White is more active.} Nd5 {[%emt 0:02:16]} 35. Qxe4 {[%emt 0:00:14]} Qxe4+ {[%emt 0:00:06][%mdl 64] Remove Defender} 36. Bxe4 {[%emt 0:00:04] And now Kd3 would win.} Bxd4 {[%emt 0:00:11][%mdl 4096] Endgame KBB-KBN} 37. b4 {[%emt 0:01:07]} Bg1 {[%emt 0:00:54]} 38. h4 {[%emt 0:01:56]} gxh4 {[%emt 0:00:07]} 39. gxh4 {[%emt 0:00:04] aiming for Bxd5.} Be3 $2 {[%emt 0:00:59][%mdl 8192] This costs Black the game.} (39... h5 $16) 40. Bxe3 $18 {[%emt 0:02:12]} Nxe3+ {[%emt 0:00:05] KB-KN} 41. Kd3 {[%emt 0:01:47]} Ng4 {[%emt 0:07:39]} 42. Kd4 {[%emt 0:01:42]} Nf6 {[%emt 0:05:56]} 43. Ke5 {[%emt 0:04:11]} Ke7 {[%emt 0:00:37]} 44. Bf3 {[%emt 0:00:38]} Nd7+ {[%emt 0:06:21]} 45. Kf5 {[%emt 0:07:38]} Nf6 {[%emt 0:01:18]} 46. Bg2 {[%emt 0:05:25]} Kf7 {[%emt 0:02:09]} 47. Bf1 {[%emt 0:00:51]} Ke7 {[%emt 0:02:38]} 48. Bc4 {[%emt 0:00:06]} Ne8 {[%emt 0:07:02]} 49. Kg6 {[%emt 0:03:55] Black must now prevent h5.} Nc7 {[%emt 0:01:05]} 50. Kxh6 {[%emt 0:00:16]} Kf6 {[%emt 0:00:14]} 51. h5 {[%emt 0:02:07] Strongly threatening Kh7.} Nd5 {[%emt 0:00:55]} 52. Bxd5 {[%emt 0:01:28]} cxd5 {[%emt 0:00:07] [#] KP-KP} 53. b5 $1 {[%emt 0:00:08]} ({And not} 53. Kh7 d4 54. h6 Kf7 $11) 53... d4 {[%emt 0:00:37] [#]} 54. c6 $1 {[%emt 0:00:08]} bxc6 {[%emt 0:00:42]} 55. bxa6 {[%emt 0:00:14] Threatening mate with a7. K3P-KPP} d3 {[%emt 0:00:05]} 56. a7 {[%emt 0:00:03]} d2 {[%emt 0:00:04]} 57. a8=Q {[%emt 0:00:06] White wants to mate with Qd8+.} d1=Q {[%emt 0:00:08] Prevents Qd8+.} 58. Qxc6+ {[%emt 0:00:05]} Kf7 {[%emt 0:00:55]} 59. Qg6+ {[%emt 0:02:52] White mates.} Kf8 {[%emt 0:00:54]} 60. Qf6+ {[%emt 0:00:26]} Ke8 {[%emt 0:00:06]} 61. a6 {[%emt 0:00:31]} Qd2+ {[%emt 0:01:47]} 62. Kh7 {[%emt 0:00:57]} Qd7+ {[%emt 0:00:26]} 63. Kh8 {[%emt 0:00:23] Weighted Error Value: White=0.06 (flawless) /Black=0.43} 1-0

[Event "FRA-ch Teams Top 16-A 2022"]
[Site "Chartres"]
[Date "2022.06.13"]
[Round "5.5"]
[White "Saatdjian, Thomas"]
[Black "Loiseau, Quentin"]
[Result "1/2-1/2"]
[ECO "E05"]
[WhiteElo "2271"]
[BlackElo "2445"]
[Annotator "TA"]
[PlyCount "38"]
[EventDate "2022.06.09"]
[EventType "team-tourn"]
[EventCountry "FRA"]
[SourceTitle "playchess.com"]
[Source "ChessBase"]
[SourceQuality "1"]
[TimeControl "40/5400+30:1800+30"]

{[%evp 21,38,27,20,21,45,0,49,38,73,43,78,5,65,69,58,50,46,18,13]} 1. d4 {[%emt 0:00:03]} Nf6 {[%emt 0:00:38]} 2. c4 {[%emt 0:00:21]} e6 {[%emt 0:00:06]} 3. Nf3 {[%emt 0:00:10]} d5 {[%emt 0:00:22]} 4. g3 {[%emt 0:01:38]} Be7 {[%emt 0:01:53]} 5. Bg2 {[%emt 0:00:44]} O-O {[%emt 0:00:13]} 6. O-O {[%emt 0:00:04]} dxc4 {[%emt 0:01:53]} 7. Ne5 {[%emt 0:01:07]} Nc6 {[%emt 0:00:12]} 8. Nxc6 {[%emt 0:00:04]} bxc6 {[%emt 0:00:06]} 9. Na3 {[%emt 0:00:05]} Bxa3 {[%emt 0:01:01]} 10. bxa3 {[%emt 0:00:05]} Nd5 {[%emt 0:01:05]} 11. Qa4 {[%emt 0:12:29]} Nb6 $1 {[%emt 0:15:14][%csl LRa4,LRd4]} 12. Qa5 {[%emt 0:03:35][%mdl 1024] White has compensation. E05: Open Catalan: 5 Nf3 Be7.} Bb7 {[%emt 0:03:49]} 13. Qc5 {[%emt 0:29:26] [#]} Qc8 $146 {[%emt 0:07:28]} (13... Qd6 $11) ({Predecessor:} 13... Qd6 14. Rb1 Rad8 15. Qa5 Ba8 16. Bf4 Qxd4 17. Bxc7 Rd7 18. Qxa7 Na4 19. Qxd4 Rxd4 {1-0 (56) Sadilek,P (2266)-Schroll,G (2298) Austria 2018}) 14. Rb1 $14 {[%emt 0:18:07] White is slightly better.} Rd8 {[%emt 0:03:04]} 15. Rd1 {[%emt 0:01:31]} Rd7 {[%emt 0:06:14]} 16. a4 {[%emt 0:09:17] 0x0.00222ccd3814dp-1022s more active pieces.} (16. Bf4 $16) 16... Nxa4 {[%emt 0:02:42]} (16... Rd5 $1 $11 17. Bxd5 cxd5) 17. Qxc4 {[%emt 0:00:06]} Nb6 {[%emt 0:00:13]} 18. Qc2 {[%emt 0:07:47]} c5 {[%emt 0:24:40]} 19. Bxb7 {[%emt 0:08:19]} (19. dxc5 $5 {[%cal Rd1d7]} Rxd1+ 20. Qxd1 Bxg2 21. Kxg2 $14) 19... Qxb7 {[%emt 0:00:29] Weighted Error Value: White=0.29 (precise) /Black=0.31} 1/2-1/2

[Event "FRA-ch Teams Top 16-A 2022"]
[Site "Chartres"]
[Date "2022.06.13"]
[Round "5.6"]
[White "Barbot, Pierre"]
[Black "Caille, Hugo"]
[Result "1/2-1/2"]
[ECO "E11"]
[WhiteElo "2450"]
[BlackElo "2177"]
[Annotator "TA"]
[PlyCount "50"]
[EventDate "2022.06.09"]
[EventType "team-tourn"]
[EventCountry "FRA"]
[SourceTitle "playchess.com"]
[Source "ChessBase"]
[SourceQuality "1"]
[TimeControl "40/5400+30:1800+30"]

{[%evp 12,50,0,11,36,23,31,34,30,10,22,19,22,-8,0,-13,-5,-13,0,0,6,0,0,6,9,0,137,123,130,113,139,125,131,14,11,12,19,0,0,0,0]} 1. d4 {[%emt 0:00:02]} Nf6 {[%emt 0:00:12]} 2. c4 {[%emt 0:00:04]} e6 {[%emt 0:00:12]} 3. Nf3 {[%emt 0:00:04]} d5 {[%emt 0:00:07]} 4. g3 {[%emt 0:00:13]} Bb4+ {[%emt 0:01:10]} 5. Bd2 {[%emt 0:01:13]} a5 {[%emt 0:00:22]} 6. Qc2 {[%emt 0:02:45]} O-O {[%emt 0:00:19]} 7. Bg2 {[%emt 0:00:03]} c5 {[%emt 0:00:07] E11: Bogo-Indian.} 8. dxc5 {[%emt 0:02:37]} d4 {[%emt 0:02:53]} 9. Bxb4 {[%emt 0:06:48]} axb4 {[%emt 0:00:07] White is slightly better.} 10. O-O {[%emt 0:00:11]} Nc6 $1 {[%emt 0:02:25]} 11. Nbd2 {[%emt 0:03:41]} Qe7 {[%emt 0:05:27]} 12. Nb3 {[%emt 0:01:44]} (12. Ng5 {is interesting.} e5 13. Bd5 Kh8 14. a3) 12... e5 {[%emt 0:01:11]} 13. Ng5 {[%emt 0:09:31]} h6 {[%emt 0:16:21]} 14. Ne4 {[%emt 0:00:18]} Nxe4 {[%emt 0:07:49]} 15. Bxe4 {[%emt 0:00:20]} Bh3 {[%emt 0:00:18]} 16. Rfe1 {[%emt 0:01:51]} f5 {[%emt 0:08:09]} 17. Bd5+ {[%emt 0:00:08]} Kh8 {[%emt 0:00:05]} 18. e3 {[%emt 0:00:40] [#]} d3 $146 {[%emt 0:00:41]} (18... dxe3 $11 19. Rxe3 (19. fxe3 e4 $11) 19... e4) ({Predecessor:} 18... dxe3 19. Rxe3 e4 20. f4 Ra4 21. Qd2 Rfa8 22. Bxc6 bxc6 23. Qd6 Qe8 24. Nd4 Rxa2 25. Rxa2 Rxa2 {0-1 (42) Krasenkow,M (2591)-Piorun,K (2608) Polanica Zdroj 2021}) 19. Qxd3 $16 {[%emt 0:10:54]} e4 {[%emt 0:00:09]} 20. Qc2 {[%emt 0:00:57]} Ne5 {[%emt 0:01:32][%cal Bc6e5,Be5d3,Bd3c5,Bc5d3][%mdl 32] [#] And now ...Nf3+ would win.} 21. Nd4 {[%emt 0:00:40] Prevents Nf3+.} Ra6 {[%emt 0:03:24]} 22. f4 {[%emt 0:09:04]} (22. a3 $16) 22... Nd3 $11 {[%emt 0:16:29] The position is equal.} 23. Red1 {[%emt 0:01:48]} Nxc5 {[%emt 0:01:46]} 24. Nb3 {[%emt 0:03:11]} Nd3 {[%emt 0:06:54]} 25. Nc1 {[%emt 0:06:25]} Bg4 {[%emt 0:03:05] Weighted Error Value: White=0.19 (very precise) /Black=0.11 (very precise)} 1/2-1/2

[Event "FRA-ch Teams Top 16-A 2022"]
[Site "Chartres"]
[Date "2022.06.13"]
[Round "5.7"]
[White "Da Silva, Quentin"]
[Black "Milliet, Sophie"]
[Result "1/2-1/2"]
[ECO "C78"]
[WhiteElo "2171"]
[BlackElo "2410"]
[Annotator "TA"]
[PlyCount "66"]
[EventDate "2022.06.09"]
[EventType "team-tourn"]
[EventCountry "FRA"]
[SourceTitle "playchess.com"]
[Source "ChessBase"]
[SourceQuality "1"]
[TimeControl "40/5400+30:1800+30"]

{[%evp 15,66,5,8,7,15,6,15,8,4,0,0,-43,0,0,0,0,47,34,97,85,103,103,104,115,197,214,273,206,200,142,375,381,369,193,205,0,0,0,0,0,0,0,379,379,364,0,0,0,352,0,0,0,312]} 1. e4 {[%emt 0:00:06]} e5 {[%emt 0:00:03]} 2. Nf3 {[%emt 0:00:13]} Nc6 {[%emt 0:00:04]} 3. Bb5 {[%emt 0:00:45]} a6 {[%emt 0:00:06]} 4. Ba4 {[%emt 0:00:36]} Nf6 {[%emt 0:00:05]} 5. O-O {[%emt 0:00:48]} b5 {[%emt 0:00:14]} 6. Bb3 {[%emt 0:00:26]} Bc5 {[%emt 0:00:07]} 7. d3 {[%emt 0:09:49]} d6 {[%emt 0:01:57]} 8. c3 {[%emt 0:06:55]} h6 {[%emt 0:00:35]} 9. Re1 {[%emt 0:02:56] 9.Nbd2 is a critical line. C78: Ruy Lopez: Archangelsk and Möller Defences.} O-O {[%emt 0:00:54]} 10. Nbd2 {[%emt 0:02:37]} Bb6 {[%emt 0:02:22]} 11. Nf1 {[%emt 0:03:10]} Ne7 {[%emt 0:00:34]} 12. Ng3 {[%emt 0:03:35]} Ng6 {[%emt 0:00:18]} 13. d4 {[%emt 0:14:50]} c5 {[%emt 0:22:35]} 14. h3 {[%emt 0:13:56] [#]} cxd4 $146 {[%emt 0:36:26]} ({Predecessor:} 14... exd4 15. cxd4 c4 16. Bc2 Bb7 17. d5 Nd7 18. Bd2 Nde5 19. Nf5 Nxf3+ 20. Qxf3 Nh4 {0-1 (43) Tukhaev,A (2564)-Kovalev,V (2546) Minsk 2015}) 15. cxd4 {[%emt 0:00:09]} exd4 {[%emt 0:00:45]} (15... Bb7 $11) 16. Nxd4 $14 {[%emt 0:00:24]} Re8 {[%emt 0:03:46]} (16... a5 $14) 17. Be3 $1 $16 {[%emt 0:07:21]} Bb7 {[%emt 0:00:44] Inhibits Nc6.} 18. Ndf5 {[%emt 0:02:40]} d5 {[%emt 0:08:13]} 19. exd5 {[%emt 0:08:04] White is more active.} Nxd5 {[%emt 0:00:56]} (19... Bxd5 $16 20. Bxd5 Nxd5) 20. Bxb6 $18 {[%emt 0:01:11]} Rxe1+ {[%emt 0:00:31]} 21. Qxe1 {[%emt 0:00:04]} Qxb6 {[%emt 0:01:11]} 22. Nh5 $40 {[%emt 0:03:34][%mdl 128] Strongly threatening Bxd5. White is out for blood.} Kh7 $2 {[%emt 0:09:08]} (22... Qc6 $16 {was called for.}) 23. Bxd5 {[%emt 0:05:03]} (23. Qd2 Rd8 $18) 23... Bxd5 {[%emt 0:00:05]} 24. Nhxg7 {[%emt 0:01:44] Pair of Knights!} (24. Qd2 Bb7 $16) (24. Rd1 $142 Qc5 25. Nhxg7) 24... Nf4 {[%emt 0:01:10] ...Qg6 is the strong threat.} 25. Qd2 $2 {[%emt 0:03:39]} ({White must play} 25. Qe5 $18 Qg6 26. g3 Nxh3+ 27. Kh2 Nxf2 28. Qxd5) 25... Qg6 $11 {[%emt 0:00:21][%csl Gd5,Gf4][%cal Rg6g2]} 26. g3 {[%emt 0:00:55]} Nxh3+ {[%emt 0:01:02]} 27. Kh2 {[%emt 0:00:46]} Rd8 {[%emt 0:07:04] Threatens to win with ...Ng5.} 28. Qa5 {[%emt 0:04:35] Really sharp!} ({Don't go for} 28. Kxh3 $2 Bg2+ $1 {[%mdl 512]} 29. Kxg2 Rxd2 $19) 28... Ng5 $2 {[%emt 0:02:23][%mdl 8192]} 29. Qxd8 $18 {[%emt 0:00:55]} Nf3+ {[%emt 0:00:02]} 30. Kh3 {[%emt 0:02:44]} ({Stronger than} 30. Kh1 Qg4 31. Kg2 Nh4+ 32. Kh2 Nf3+ 33. Kg2 Nh4+ 34. Kh2 Nf3+ 35. Kg2 $11) 30... Ng5+ $1 {[%emt 0:00:03]} 31. Kh2 {[%emt 0:00:27]} Nf3+ $1 {[%emt 0:00:01] [#]} 32. Kh3 $2 {[%emt 0:00:15]} ({Worse is} 32. Kh1 Qg4 33. Kg2 Nh4+ 34. Kh2 Nf3+ 35. Kg2 Nh4+ 36. Kh2 Nf3+ 37. Kg2 $11) (32. Kg2 $1 $18 Be4 {[#]} 33. Qd6 $1 Ng5+ 34. Kg1) 32... Ng5+ $1 $11 {[%emt 0:00:03]} 33. Kh2 $2 {[%emt 0:00:09][%mdl 8192]} (33. Kh4 $11 Nf3+ 34. Kh3) 33... Nf3+ $1 {[%emt 0:03:12][%mdl 32768] Weighted Error Value: White=0.52/Black=0.54. An unexpected result.} 1/2-1/2

[Event "FRA-ch Teams Top 16-A 2022"]
[Site "Chartres"]
[Date "2022.06.13"]
[Round "5.8"]
[White "Riff, Vincent"]
[Black "Afraoui, Solenn"]
[Result "1-0"]
[ECO "A05"]
[WhiteElo "2397"]
[BlackElo "1945"]
[Annotator "TA"]
[PlyCount "100"]
[EventDate "2022.06.09"]
[EventType "team-tourn"]
[EventCountry "FRA"]
[SourceTitle "playchess.com"]
[Source "ChessBase"]
[SourceQuality "1"]
[TimeControl "40/5400+30:1800+30"]

{[%evp 10,100,21,16,25,20,36,26,39,0,41,34,123,74,60,5,55,54,75,50,120,103,249,261,286,283,275,268,460,466,514,465,662,598,600,472,499,396,368,391,383,383,373,339,335,348,357,318,372,360,510,484,470,482,554,549,612,605,595,531,595,592,592,591,565,359,361,356,374,191,682,665,704,622,689,586,585,502,658,649,643,615,1550,1383,1683,1652,1437,1425,1738,1110,29977,29978,29967]} 1. Nf3 {[%emt 0:00:43]} Nf6 {[%emt 0:00:18]} 2. g3 {[%emt 0:00:09]} b5 {[%emt 1:31:12]} 3. Bg2 {[%emt 0:00:07]} Bb7 {[%emt 0:00:00]} 4. Na3 {[%emt 0:00:06]} a6 {[%emt 0:00:00]} 5. c4 {[%emt 0:00:29]} b4 {[%emt 0:00:00]} 6. Nc2 {[%emt 0:00:14]} e6 {[%emt 0:00:00] A05: Réti Opening: 1 Nf3 Nf6.} 7. O-O {[%emt 0:00:11]} Be7 {[%emt 0:00:00]} 8. d4 {[%emt 0:01:05][%cal Od4d5]} O-O {[%emt 0:00:00] White has an edge.} 9. Re1 {[%emt 0:01:45][%cal Od4d5]} c5 {[%emt 0:00:00][%cal Bc7c5,Bc5c4][%mdl 32]} 10. d5 {[%emt 0:01:51] [#]} Ne4 $146 {[%emt 0:00:00] [#]} (10... exd5 $14 11. Nh4 g6) ({Predecessor:} 10... Qb6 11. e4 exd5 12. exd5 Re8 13. Nh4 d6 14. Nf5 Bf8 15. Rxe8 Nxe8 16. Nce3 Nd7 {1-0 (27) D'Amore,C (2305)-Vancini,E Ravenna 1983}) 11. Ne5 {[%emt 0:11:40]} (11. Qd3 $142 $1 {[%cal Rd3e4]} f5 12. Nd2) 11... f5 $16 {[%emt 0:00:00]} 12. Nd3 {[%emt 0:09:48]} ({White should try} 12. f3 $14 Nd6 13. e4) 12... exd5 {[%emt 0:00:00]} (12... a5 $1 $11) 13. cxd5 $14 {[%emt 0:00:16]} c4 $1 {[%emt 0:00:00]} 14. Nf4 $36 {[%emt 0:08:01][%mdl 2048] White is pushing.} Bc5 {[%emt 0:00:00]} (14... a5 $14) 15. Be3 $16 {[%emt 0:02:04]} Bxe3 {[%emt 0:00:00] Loses the game.} (15... Bd6 $16 {was called for.}) 16. Nxe3 $18 {[%emt 0:00:30]} c3 {[%emt 0:00:00]} 17. Bxe4 {[%emt 0:01:56]} fxe4 {[%emt 0:00:00] [#]} 18. bxc3 {[%emt 0:00:08]} Rxf4 $2 {[%emt 0:02:56]} (18... Qf6 {keeps fighting.} 19. cxb4 g5) 19. gxf4 {[%emt 0:00:10]} a5 {[%emt 0:00:31]} 20. Qd4 {[%emt 0:00:31]} Ra6 {[%emt 0:00:57]} (20... Na6 $142 21. cxb4 axb4 22. Qxe4 d6 23. Qe6+ Kf8 24. Qf5+ Kg8) 21. Kh1 {[%emt 0:00:37]} Qf6 {[%emt 0:02:31]} 22. Qxe4 {[%emt 0:00:45]} Re6 {[%emt 0:00:53]} 23. Qd4 {[%emt 0:03:06]} Qxd4 {[%emt 0:00:28]} 24. cxd4 {[%emt 0:00:03]} Re4 {[%emt 0:00:25]} 25. Rac1 {[%emt 0:00:13]} Na6 {[%emt 0:01:47] Inhibits Rc5.} 26. Nf5 {[%emt 0:03:02]} Bxd5 {[%emt 0:00:49]} 27. f3 {[%emt 0:00:07]} Re8 {[%emt 0:00:31] Prevents Rc8.} 28. Nd6 {[%emt 0:03:55]} Rb8 {[%emt 0:00:09]} 29. Rc2 {[%emt 0:00:13]} a4 {[%emt 0:00:52]} (29... b3 {was necessary.} 30. axb3 Bxb3) 30. Rec1 {[%emt 0:00:29] Intending Rc8+ and mate.} Kf8 {[%emt 0:00:37]} 31. e4 {[%emt 0:00:15][%cal Be2e4,Be4e5][%mdl 32]} b3 {[%emt 0:00:31]} 32. axb3 {[%emt 0:08:15]} (32. exd5 bxc2 33. Rxc2 a3 $14) 32... Bxb3 {[%emt 0:00:16]} 33. Rc8+ {[%emt 0:00:14]} Rxc8 {[%emt 0:00:12]} 34. Rxc8+ {[%emt 0:00:03][%mdl 4096] Endgame KRN-KBN} ({Not} 34. Nxc8 a3 $16) 34... Ke7 {[%emt 0:00:04]} 35. e5 {[%emt 0:02:45][%csl Gd6][%cal Rc8e8]} Ke6 {[%emt 0:00:14]} 36. Ra8 {[%emt 0:00:42]} Nb4 {[%emt 0:01:24]} 37. Ra5 {[%emt 0:01:40] Hoping for f5+.} g6 {[%emt 0:00:13] Prevents f5+.} 38. Ne4 {[%emt 0:00:25]} Kf5 {[%emt 0:00:54]} 39. Nc5 {[%emt 0:04:15]} (39. Rb5 $142 Nd5 40. Kg2) 39... Bd5 $2 {[%emt 0:00:34]} (39... Kxf4 40. Nxb3 (40. Nxa4 Nc6 $18) 40... axb3) 40. Rxa4 {[%emt 0:09:53]} Bxf3+ {[%emt 0:00:12]} 41. Kg1 {[%emt 0:30:02]} Nd5 {[%emt 0:03:58]} 42. Nxd7 {[%emt 0:00:00]} Nxf4 {[%emt 0:04:36]} 43. Nf8 {[%emt 0:00:00]} h5 {[%emt 0:02:46]} 44. Kf2 {[%emt 0:00:00]} Bd5 {[%emt 0:01:25]} 45. Ra6 {[%emt 0:00:00]} g5 {[%emt 0:10:17]} 46. Rf6+ {[%emt 0:00:00]} Ke4 {[%emt 0:00:44]} 47. e6 {[%emt 0:00:00] Strongly threatening e7.} Bc6 {[%emt 0:04:10]} 48. e7 {[%emt 0:00:00]} Be8 {[%emt 0:00:42]} 49. Ne6 {[%emt 0:00:00] Nxf4 would kill now.} Nxe6 {[%emt 0:04:12]} 50. Rxe6+ {[%emt 0:00:00]} Kd5 {[%emt 0:03:10] Weighted Error Value: White=0.22 (precise) /Black=0.46} 1-0

[Event "FRA-ch Teams Top 16-A 2022"]
[Site "Chartres"]
[Date "2022.06.13"]
[Round "5.9"]
[White "Bacrot, Etienne"]
[Black "Kamsky, Gata"]
[Result "1/2-1/2"]
[ECO "C95"]
[WhiteElo "2638"]
[BlackElo "2661"]
[Annotator "TA"]
[PlyCount "46"]
[EventDate "2022.06.09"]
[EventType "team-tourn"]
[EventCountry "FRA"]
[SourceTitle "playchess.com"]
[Source "ChessBase"]
[SourceQuality "1"]
[TimeControl "40/5400+30:1800+30"]

{[%evp 21,33,21,26,18,26,20,20,13,19,20,17,10,14,11]} 1. e4 {[%emt 0:10:06]} e5 {[%emt 0:00:38]} 2. Nf3 {[%emt 0:00:40]} Nc6 {[%emt 0:00:07]} 3. Bb5 {[%emt 0:00:04]} a6 {[%emt 0:00:06]} 4. Ba4 {[%emt 0:00:03]} Nf6 {[%emt 0:00:06]} 5. O-O {[%emt 0:00:05]} Be7 {[%emt 0:00:06]} 6. Re1 {[%emt 0:00:05]} b5 {[%emt 0:00:07]} 7. Bb3 {[%emt 0:00:03]} d6 {[%emt 0:00:06]} 8. c3 {[%emt 0:00:06]} O-O {[%emt 0:00:06]} 9. h3 {[%emt 0:00:05]} Nb8 {[%emt 0:00:05]} 10. d4 {[%emt 0:00:12]} Nbd7 {[%emt 0:00:06]} 11. c4 {[%emt 0:01:12]} c6 {[%emt 0:00:24]} 12. Qc2 {[%emt 0:00:05] C95: Closed Ruy Lopez: Breyer Variation with 10 d4.} a5 {[%emt 0:02:14][%cal Ba6a5,Ba5a4][%mdl 32] [#] And now ...a4 would win.} 13. cxb5 {[%emt 0:03:28]} cxb5 {[%emt 0:00:05] The position is equal.} 14. Nc3 {[%emt 0:00:09]} a4 {[%emt 0:00:52]} 15. Bd5 {[%emt 0:00:06]} Nxd5 {[%emt 0:00:11]} 16. Nxd5 {[%emt 0:00:05]} Bb7 {[%emt 0:00:10]} 17. Nxe7+ {[%emt 0:21:49] [#] A balanced but interesting game.  Weighted Error Value: White=0.03 (flawless) /Black=0.01 (flawless)} {Predecessor:} Qxe7 $146 18. Qc7 Rab8 19. dxe5 dxe5 20. Bg5 Qe6 21. Rad1 Bc8 22. Rd5 Rb7 23. Qa5 h6 {1-0 (59) Bacrot,E (2669)-Buhmann,R (2565) Germany 2021} 1/2-1/2

[Event "FRA-ch Teams Top 16-A 2022"]
[Site "Chartres"]
[Date "2022.06.13"]
[Round "5.10"]
[White "Bauer, Christian"]
[Black "Ragger, Markus"]
[Result "1/2-1/2"]
[ECO "C47"]
[WhiteElo "2596"]
[BlackElo "2636"]
[Annotator "TA"]
[PlyCount "37"]
[EventDate "2022.06.09"]
[EventType "team-tourn"]
[EventCountry "FRA"]
[SourceTitle "playchess.com"]
[Source "ChessBase"]
[SourceQuality "1"]
[TimeControl "40/5400+30:1800+30"]

{[%evp 16,23,10,1,10,6,18,16,17,10]} 1. e4 {[%emt 0:01:19]} e5 {[%emt 0:00:06]} 2. Nf3 {[%emt 0:00:24]} Nc6 {[%emt 0:00:02]} 3. Nc3 {[%emt 0:00:22]} Nf6 {[%emt 0:00:04]} 4. d4 {[%emt 0:00:09]} exd4 {[%emt 0:00:19]} 5. Nxd4 {[%emt 0:00:08]} Bb4 {[%emt 0:00:11]} 6. Nxc6 {[%emt 0:00:08]} bxc6 {[%emt 0:00:03]} 7. Bd3 {[%emt 0:00:10]} d5 {[%emt 0:00:05]} 8. Bd2 {[%emt 0:02:29]} O-O {[%emt 0:01:23]} 9. O-O {[%emt 0:00:41] The position is equal.} Bxc3 {[%emt 0:07:36] C47: Scotch Four Knights and Four Knights with 4 g3.} 10. Bxc3 {[%emt 0:00:06]} dxe4 $1 {[%emt 0:00:11][%mdl 4] is currently scoring better than 10...Nxe4.} 11. Bxf6 {[%emt 0:00:32][%mdl 64] [#] Remove Defender} Qxf6 {[%emt 0:00:03]} 12. Bxe4 {[%emt 0:00:09] [#] A rather calm draw.} {Predecessor:} Qxb2 $146 13. Bxc6 Rb8 14. Rb1 Qxb1 15. Qxb1 Rxb1 16. Rxb1 Rd8 17. Bf3 Bf5 18. Rb7 Bxc2 19. Rxc7 {½-½ (37) Andreikin,D (2724)-Rapport,R (2762) Belgrade 2022} 1/2-1/2